Cogmind - Beta 16.1 @@@ ROGUE MODE // 2026.02.19 @ 04:09:36 Player: Sen Result: Destroyed by H-55 Commando with Gauss Rifle Performance ------------- Evolutions (2) 1000 Regions Visited (5) 1000 Robots Destroyed (27) 135 Value Destroyed (760) 760 Prototype IDs (7) 140 Alien Tech Used (0) 0 Bonus (33) 33 TOTAL SCORE: 3068 Bonus ------- Follower Combat Kills 33 Cogmind --------- Core Integrity 0/550 Matter 251/300 Energy 100/100 System Corruption 0% Temperature Cool (0) Movement Core (450) Ox8 Location -8/Materials Parts ------- > --- POWER (1) -------- (None) > --- PROPULSION (3) --- (None) > --- UTILITY (5) ------ Large Storage Unit > --- WEAPON (2) ------- Shotgun Hammer > --- INVENTORY (15) --- Light Ion Engine Improved Heat Sink Structural Scanner Structural Scanner Improved Signal Interpreter Tractor Beam Light Assault Rifle Light Assault Rifle Heavy Assault Rifle Grenade Launcher Mining Laser Plasma Cutter Peak State ------------ > --- POWER ------------ Light Nuclear Core > --- PROPULSION ------- Aluminum Leg Aluminum Leg Carbon-fiber Leg > --- UTILITY ---------- Large Storage Unit Makeshift Salvage Targeting Computer Reaction Control System Improved Utility Shielding Light Armor Plating > --- WEAPON ----------- Hammer Makeshift Sword > --- INVENTORY -------- Light Ion Engine Light Nuclear Core Improved Heat Sink Structural Scanner Structural Scanner Improved Signal Interpreter Tractor Beam Light Assault Rifle Light Assault Rifle Shotgun Grenade Launcher Mining Laser Plasma Cutter [Rating: 27] Favorites ----------- Power Light Ion Engine Engine Light Ion Engine Power Core Light Nuclear Core Propulsion Aluminum Leg Leg Aluminum Leg Wheel Wheel Utility Large Storage Unit Device Structural Scanner Storage Large Storage Unit Processor Makeshift Salvage Targeting Computer Protection Improved Utility Shielding Weapon Small Laser Energy Gun Small Laser Ballistic Gun Assault Rifle Impact Weapon Hammer Slashing Weapon Makeshift Sword Build | -11 -10 -10 -10 -9 -8 ------- Run | Yrd Mat Min Exi Min Mat Slots Evolved 4 | . . . . . 4 Power . | . . . . . . Propulsion 1 | . . . . . 1 Utility 3 | . . . . . 3 Weapon . | . . . . . . Parts Attached 31 | 6 4 3 . . 18 Power 6 | 1 1 1 . . 3 Engine 4 | 1 1 1 . . 1 Core 2 | . . . . . 2 Reactor . | . . . . . . Propulsion 8 | 2 . 2 . . 4 Treads . | . . . . . . Leg 6 | . . 2 . . 4 Wheel 2 | 2 . . . . . Hover . | . . . . . . Flight . | . . . . . . Utility 10 | 1 3 . . . 6 Device 4 | . 1 . . . 3 Storage 3 | 1 2 . . . . Processor 1 | . . . . . 1 Hackware . | . . . . . . Protection 2 | . . . . . 2 Artifact . | . . . . . . Weapon 7 | 2 . . . . 5 Energy Gun 1 | 1 . . . . . Energy Cannon . | . . . . . . Ballistic Gun 4 | 1 . . . . 3 Ballistic Cannon . | . . . . . . Launcher . | . . . . . . Special Weapon . | . . . . . . Impact Weapon 1 | . . . . . 1 Slashing Weapon 1 | . . . . . 1 Piercing Weapon . | . . . . . . Special Melee Weapon . | . . . . . . Unidentified Prototypes . | . . . . . . Parts Lost 19 | . . 2 . . 17 Power 4 | . . . . . 4 Propulsion 8 | . . 2 . . 6 Utility 5 | . . . . . 5 Weapon 2 | . . . . . 2 Highest Loss Streak 13 | . . 2 . . 13 To Critical Strikes . | . . . . . . Average Backups 12 | 2 7 12 13 14 13 Power 1 | . 1 2 2 2 2 Propulsion 1 | 1 2 2 2 2 . Utility 3 | . 2 3 3 4 4 Weapon 4 | . 1 4 6 6 5 Tool/Special . | . . . . . . Unused Backups 14 | . . . . . 14 Power 3 | . . . . . 3 Propulsion . | . . . . . . Utility 4 | . . . . . 4 Weapon 6 | . . . . . 6 Tool/Special 1 | . . . . . 1 Average Slot Usage (%) 96 | . 89 97 100 100 88 Engine 12 | . 14 13 14 14 7 Leg 21 | . . 11 28 28 23 Wheel 5 | . 28 14 . . . Device 12 | . 4 14 14 14 15 Storage 12 | . 14 14 14 14 9 Processor 1 | . . . . . 8 Protection 1 | . . . . . 7 Energy Gun 12 | . 14 14 14 14 4 Ballistic Gun 12 | . 14 14 14 14 8 Peak Build Rating 27 | 6 8 8 9 9 27 Average Rating 10 | 4 6 7 8 9 17 On Entrance 6 | . 6 8 8 9 9 Avg Prop Armor Cover (%) . | . . . . . . Naked Turns . | . . . . . . Heaviest Build 35 | 11 27 27 27 27 35 Greatest Support 35 | 26 26 26 20 20 35 Greatest Overweight (x) 9 | . 1 1 1 1 9 Average Overweight (x) . | . . 1 1 1 . Largest Inventory Capacity 15 | 8 15 15 15 15 15 Average Capacity 14 | 6 11 15 15 15 15 Most Carried 15 | 4 12 14 14 15 15 Average Carried 12 | 2 7 12 13 14 13 Final Capacity 15 | 8 15 15 15 15 15 Final Carried 15 | 3 12 13 14 15 12 Class Distribution -------------------- 49% | Commander-Mutant 48% | Mutant Dominant Class ---------------- Mutant | -10/Materials Mutant | -10/Mines Commander-Mutant | -10/Exiles Commander-Mutant | -9/Mines Mutant | -8/Materials Resources | -11 -10 -10 -10 -9 -8 ----------- Run | Yrd Mat Min Exi Min Mat Matter Collected 666 | 195 154 81 . 10 226 Remotely . | . . . . . . Salvage Created 959 | . 154 167 . . 638 Parts 57 | . 8 15 . . 34 Haulers Intercepted 1 | . 1 . . . . Recyclers Shooed 1 | . . . . . 1 Parts Field Recycled . | . . . . . . Retrieved Matter . | . . . . . . Parts Self-Destructed . | . . . . . . Prevented . | . . . . . . Parts Restored . | . . . . . . Kills | -11 -10 -10 -10 -9 -8 ------- Run | Yrd Mat Min Exi Min Mat Combat Hostiles Destroyed 25 | . 4 8 . . 13 Melee 5 | . . . . . 5 Guns 20 | . 4 8 . . 8 Classes Destroyed 7 | . 3 . . . 4 Hauler 1 | . 1 . . . . Mechanic 1 | . . . . . 1 Swarmer 11 | . 3 6 . . 2 Grunt 10 | . 1 2 . . 7 Brawler 1 | . . . . . 1 Sentry 2 | . . . . . 2 Hunter 1 | . . . . . 1 Best Kill Streak 7 | . 3 7 . . 3 Combat Bots Only 7 | . 3 7 . . 3 Max Kills in Single Turn 2 | . 2 2 . . 2 Gunslinging 1 | . 1 1 . . . Exploded . | . . . . . . Melee 1 | . . . . . 1 Uniques/NPCs Destroyed . | . . . . . . Combat | -11 -10 -10 -10 -9 -8 -------- Run | Yrd Mat Min Exi Min Mat Hostile Shots Fired 229 | . 21 22 . . 186 Missed 59 | . 4 5 . . 50 Hits 170 | . 17 17 . . 136 Melee 3 | . . . . . 3 Projectile 167 | . 17 17 . . 133 Critical Strikes 7 | . . 2 . . 5 Actively Blocked 3 | . . . . . 3 Damage Taken 2195 | . 158 198 . . 1839 Core 618 | . 58 . . . 560 Absorbed by Shields . | . . . . . . Redirected to Shielding 110 | . . . . . 110 Core Remaining (%) 88 | 100 . . . 76 . Volleys Fired 99 | . 26 14 . . 59 Largest 2 | . 2 2 . . 2 Hottest 60 | . 60 60 . . 60 Shots Fired 168 | . 52 28 . . 88 Gun 168 | . 52 28 . . 88 Cannon . | . . . . . . Launcher . | . . . . . . Special . | . . . . . . Kinetic 102 | . 26 14 . . 62 Thermal 66 | . 26 14 . . 26 Explosive . | . . . . . . Electromagnetic . | . . . . . . Robot Hit Streak 13 | . 13 7 . . 11 Robot Miss Streak 3 | . 3 3 . . 3 Penetration Max . | . . . . . . Secondary Targets 5 | . 1 3 . . 1 Max Gunslinging Chain 1 | . 1 1 . . 1 Shots Hit Robots 135 | . 33 20 . . 82 Core Hits 50 | . 9 11 . . 30 Critical Kills 1 | . . . . . 1 Critical Parts Destroyed 2 | . 1 . . . 1 Critical Strikes 6 | . 1 . . . 5 Destroy 1 | . 1 . . . . Smash 2 | . . . . . 2 Sever 3 | . . . . . 3 Melee Attacks 28 | . . . . . 28 Impact 10 | . . . . . 10 Slashing 18 | . . . . . 18 Piercing . | . . . . . . Sneak Attacks . | . . . . . . Combat Hostiles . | . . . . . . Follow-up Attacks 4 | . . . . . 4 Damage Inflicted 1986 | . 393 234 . . 1359 Guns 1322 | . 393 234 . . 695 Cannons . | . . . . . . Explosions . | . . . . . . Melee 662 | . . . . . 662 Ramming 2 | . . . . . 2 Kinetic 846 | . 196 115 . . 535 Thermal 476 | . 197 119 . . 160 Explosive . | . . . . . . Electromagnetic . | . . . . . . Impact 186 | . . . . . 186 Slashing 476 | . . . . . 476 Piercing . | . . . . . . Highest Corruption . | . . . . . . Average Corruption . | . . . . . . Corruption Purged . | . . . . . . Corruption Blocked . | . . . . . . Overload Shots . | . . . . . . Overflow Damage 50 | . . . . . 50 Projectiles . | . . . . . . Explosions . | . . . . . . Melee 50 | . . . . . 50 Knockbacks . | . . . . . . Impact . | . . . . . . Kinetic . | . . . . . . Secondary . | . . . . . . Self-Inflicted Damage . | . . . . . . Shots . | . . . . . . Rammed . | . . . . . . Targets Rammed 1 | . . . . . 1 Kicked 1 | . . . . . 1 Crushed . | . . . . . . Highest Temperature 108 | . 20 108 . . 41 Average Temperature 24 | . 13 48 . . 9 Received Heat Transfer 684 | . 48 114 . . 522 Siege Activations . | . . . . . . Martial Activations . | . . . . . . Shielding Activations . | . . . . . . Robots Disrupted . | . . . . . . Combat Hostiles . | . . . . . . Robots Corrupted . | . . . . . . Combat Hostiles . | . . . . . . Parts Fried 1 | . . . . . 1 Impact Corruptions 1 | . . . . . 1 Robots Melted . | . . . . . . Combat Hostiles . | . . . . . . Parts Melted . | . . . . . . Heat Transferred 1100 | . 450 275 . . 375 Parts Sabotaged . | . . . . . . Parts Stolen . | . . . . . . Parts Stripped . | . . . . . . Power Chain Reactions . | . . . . . . Alert | -11 -10 -10 -10 -9 -8 ------- Run | Yrd Mat Min Exi Min Mat Maximum Alert Level . | . . . . . . Low Security (%) 100 | 100 100 100 . 100 100 Level 1 . | . . . . . . Level 2 . | . . . . . . Level 3 . | . . . . . . Level 4 . | . . . . . . Level 5 . | . . . . . . High Security . | . . . . . . Max Security . | . . . . . . Peak Influence 150 | . 95 150 . 15 100 Initial 4 | . . 4 . . . Average 33 | . 30 74 . . 33 Influence Increases 805 | . 141 190 . 15 459 Destroy 0b10 Robot/C 520 | . 80 160 . . 280 Destroy 0b10 Robot/NC 10 | . 5 . . . 5 Destroy Leader 142 | . 22 30 . . 90 Allied During Kill 1 | . . . . . 1 Successful Hack 42 | . 19 . . . 23 Select Force Hacks 30 | . . . . . 30 Disable Machine 15 | . . . . 15 . Lose Combat Pursuer 45 | . 15 . . . 30 Influence Decreases 771 | . 130 111 90 15 425 Entered New Map 97 | . . 7 90 . . Time Decay 460 | . 130 84 . . 246 Lost Part 189 | . . 20 . . 169 Lost Ally 25 | . . . . 15 10 Squads Dispatched 7 | . 2 . . . 5 Investigation 1 | . . . . . 1 Extermination . | . . . . . . Reinforcement 4 | . 2 . . . 2 Assault . | . . . . . . Garrison 2 | . . . . . 2 Intercept . | . . . . . . Searches Triggered . | . . . . . . Construction Impeded 1 | . . . . . 1 Haulers Reinforced . | . . . . . . Active Scanning Responses . | . . . . . . Cargo Convoy Interrupts . | . . . . . . Stealth | -11 -10 -10 -10 -9 -8 --------- Run | Yrd Mat Min Exi Min Mat Distress Signals 2 | . . 1 . . 1 Communications Jammed . | . . . . . . Distress Signals . | . . . . . . Times Spotted 42 | . 10 8 . . 24 Peak Tracking Total 7 | . 2 6 . . 7 Tactical Retreats 2 | . 1 . . . 1 Traps | -11 -10 -10 -10 -9 -8 ------- Run | Yrd Mat Min Exi Min Mat Traps Triggered . | . . . . . . Indirectly . | . . . . . . Trap Hack Attempts . | . . . . . . Triggered . | . . . . . . Disarmed . | . . . . . . Reprogrammed . | . . . . . . Reused . | . . . . . . Traps Extracted . | . . . . . . Installed . | . . . . . . Triggered . | . . . . . . Machines | -11 -10 -10 -10 -9 -8 ---------- Run | Yrd Mat Min Exi Min Mat Machines Disabled 1 | . . . . 1 . Max in Single Turn . | . . . . . . Machines Repaired . | . . . . . . Machines Dismantled . | . . . . . . Machines Sabotaged . | . . . . . . Overloaded Fab Kills . | . . . . . . Hacking | -11 -10 -10 -10 -9 -8 --------- Run | Yrd Mat Min Exi Min Mat Machines Accessed 10 | . 2 . 4 . 4 Terminals 5 | . 2 . . . 3 Fabricators . | . . . . . . Repair Stations . | . . . . . . Recycling Units 1 | . . . . . 1 Scanalyzers . | . . . . . . Garrison Access . | . . . . . . Total Hacks 69 | . 8 . 49 . 12 Successful 61 | . 4 . 49 . 8 Failed 8 | . 4 . . . 4 Catastrophic 2 | . 2 . . . . Database Lockouts . | . . . . . . Manual 4 | . 1 . . . 3 Terminals 16 | . 8 . . . 8 Fabricators . | . . . . . . Repair Stations . | . . . . . . Recycling Units 4 | . . . . . 4 Scanalyzers . | . . . . . . Garrison Access . | . . . . . . Terminal Hacks 57 | . 3 . 49 . 5 Record 49 | . . . 49 . . Prototype ID Bank 4 | . 1 . . . 3 Branch Access Points 1 | . . . . . 1 Locate Traps 1 | . 1 . . . . Surveillance Status 1 | . 1 . . . . Zone Layout 1 | . . . . . 1 Fabricator Hacks . | . . . . . . Repair Station Hacks . | . . . . . . Recycling Unit Hacks 2 | . . . . . 2 Report Inventory 1 | . . . . . 1 Retrieve Components 1 | . . . . . 1 Scanalyzer . | . . . . . . Garrison Access Hacks . | . . . . . . Unauthorized Hacks 2 | . 1 . . . 1 Terminals 1 | . 1 . . . . Assimilate 1 | . 1 . . . . Fabricators . | . . . . . . Repair Stations . | . . . . . . Recycling Units 1 | . . . . . 1 Tunnel 1 | . . . . . 1 Scanalyzers . | . . . . . . Garrison Access . | . . . . . . Data Cores Recovered . | . . . . . . Used . | . . . . . . Hacking Detections 5 | . 2 . . . 3 Full Trace Events . | . . . . . . Feedback Events . | . . . . . . Feedback Blocked . | . . . . . . Robot Schematics Acquired . | . . . . . . Robots Built . | . . . . . . Authchips . | . . . . . . Time . | . . . . . . Total Robot Build Rating . | . . . . . . Part Schematics Acquired . | . . . . . . Parts Built . | . . . . . . Authchips . | . . . . . . Time . | . . . . . . Total Part Build Rating . | . . . . . . Part Studies Acquired . | . . . . . . Parts Repaired . | . . . . . . Time . | . . . . . . Parts Recycled . | . . . . . . Recycled Matter . | . . . . . . Retrieved Matter . | . . . . . . Retrieved Components 3 | . . . . . 3 Parts Scanalyzed . | . . . . . . Part Schematics Acquired . | . . . . . . Parts Damaged . | . . . . . . Bothacking | -11 -10 -10 -10 -9 -8 ------------ Run | Yrd Mat Min Exi Min Mat Used RIF Installer . | . . . . . . Robots Hacked . | . . . . . . Non-combat . | . . . . . . Combat . | . . . . . . Robot Hacks Applied . | . . . . . . Relay Couplers Released . | . . . . . . Fabnet Peak Effective % . | . . . . . . Robots Rewired 4 | . . . 4 . . Allies Hacked . | . . . . . . Hacks Repelled . | . . . . . . Allies | -11 -10 -10 -10 -9 -8 -------- Run | Yrd Mat Min Exi Min Mat Total Allies 5 | . 1 . 4 . . Largest Group 5 | . 1 1 5 5 2 Highest-Rated Group 55 | . 10 10 55 55 18 Highest-Rated Ally 21 | . 10 10 21 21 10 Total Orders 2 | . . . . 2 . GUARD 2 | . . . . 2 . Ally Attacks 7 | . . . . 3 4 Total Damage 55 | . . . . 33 22 Kills 1 | . . . . . 1 Allies Corrupted . | . . . . . . Allies Melted . | . . . . . . Intel | -11 -10 -10 -10 -9 -8 ------- Run | Yrd Mat Min Exi Min Mat Active Infowar (turns) 2908 | . 148 250 1772 190 548 Structural 2908 | . 148 250 1772 190 548 Seismic 421 | . . . . . 421 Robot Analysis Total . | . . . . . . Derelict Logs Recovered 2 | . . 1 . 1 . Drone Launches . | . . . . . . Drone Recoveries . | . . . . . . Exploration | -11 -10 -10 -10 -9 -8 ------------- Run | Yrd Mat Min Exi Min Mat Turns Passed 3451 | 79 485 250 1772 190 675 Spaces Moved 1816 | 70 363 143 913 88 239 Core 11 | 5 . . . . 6 Treads . | . . . . . . Legs 1290 | . . 56 913 88 233 Wheels 515 | 65 363 87 . . . Hover . | . . . . . . Flight . | . . . . . . Fastest Speed 50 | 50 90 105 190 190 120 Average Speed 160 | 87 95 138 190 190 168 Slowest Speed 500 | 90 105 190 190 190 500 Overloaded Moves . | . . . . . . Propulsion Burnouts . | . . . . . . Robots Hopped . | . . . . . . Potential Cave-ins . | . . . . . . Cave-ins Triggered . | . . . . . . Exploration Rate (%) 38 | 4 42 43 91 23 25 Regions Visited 5 Branch Regions 3 Pre-discovered Areas 2 | . . . 1 . 1 Known Exits Taken . | . . . . . . Unknown Exits Taken 5 | 1 1 1 1 1 . Scrap Searched 1 | . . . . 1 . Spaces Dug . | . . . . . . Terrain Destroyed . | . . . . . . Melee . | . . . . . . Projectile . | . . . . . . AOE . | . . . . . . Terrain Rammed . | . . . . . . Walls Destroyed . | . . . . . . Machines Disabled . | . . . . . . Actions | -11 -10 -10 -10 -9 -8 --------- Run | Yrd Mat Min Exi Min Mat Total 2167 | 85 451 169 951 111 400 Wait 109 | 6 44 3 . 23 33 Move 1811 | 69 362 142 912 87 239 Hop . | . . . . . . Pick Up 34 | 4 10 4 1 1 14 Fast Attach 11 | 5 2 1 . . 3 Attach 18 | 1 2 2 . . 13 Detach 7 | . 3 1 . . 3 Swap 4 | . . . . . 4 Drop 11 | . 2 2 . . 7 Fire 99 | . 26 14 . . 59 Melee 24 | . . . . . 24 Ram . | . . . . . . Kick 1 | . . . . . 1 Crush . | . . . . . . Escape Stasis . | . . . . . . Rewire 38 | . . . 38 . . Trap . | . . . . . . Miscellaneous . | . . . . . . Route ------- -11/Scrapyard -10/Materials -10/Mines -10/Exiles (discovered 2 exits: [*Min x2]) -9/Mines -8/Materials History --------- Turn | Location | Event 5 | -11/Scrapyard | Discovered new exit (range 16) 80 | -11/Scrapyard | Entered Materials 309 | -10/Materials | Build established: Mutant 382 | -10/Materials | Discovered new exit (range 9) 565 | -10/Materials | Entered Mines 565 | -10/Mines | Accompanied by 1 ally 578 | -10/Mines | Learned Materials security intel 601 | -10/Mines | A weapon hastily lodged in a ceiling crevice suddenly fell to the ground 694 | -10/Mines | Destroyed 7 combat bots 806 | -10/Mines | Deemed a non-threat by the Exiles lab entrance 806 | -10/Mines | Discovered new exit (range 6) 815 | -10/Mines | Entered Exiles 815 | -10/Exiles | Found Exiles lab destroyed 815 | -10/Exiles | Accompanied by 1 ally 840 | -10/Exiles | Discovered new exit (range 15) 1371 | -10/Exiles | Build established: Commander-Mutant 1410 | -10/Exiles | Learned location of Zion (-7) 1476 | -10/Exiles | Discovered new exit (range 11) 2587 | -10/Exiles | Entered Mines 2587 | -9/Mines | Accompanied by 5 allies 2588 | -9/Mines | Assembled infested the area 2593 | -9/Mines | Assisted by a Guerilla fighting off Assembled 2660 | -9/Mines | Learned 4 Materials zone layouts 2711 | -9/Mines | Discovered new exit (range 8) 2777 | -9/Mines | Entered Materials 2777 | -8/Materials | Accompanied by 2 allies 2777 | -8/Materials | Evolved 4 slots: Propulsion x1, Utility x3 3080 | -8/Materials | Build established: Mutant 3292 | -8/Materials | Garrison activated, responded to threat 3372 | -8/Materials | Core integrity fell below 50% 3402 | -8/Materials | Garrison activated, responded to threat 3416 | -8/Materials | Core integrity fell below 20% 3444 | -8/Materials | Lost 13 parts (3p5n4u1w) 3452 | -8/Materials | Destroyed by H-55 Commando with Gauss Rifle Last Messages --------------- 03402_ Y-45 Defender calls for garrison reinforcements. 03402_ ALERT: Activating Garrison Access M001. 03403_ G-47 Trooper emerges from the garrison. 03403_ Mak. Salvage Targeting Computer destroyed. 03404_ Heat Sink fried. 03404_ Y-45 Defender destroyed. 03405_ K-01 Serf cleans the Processing Tank. 03412_ Slug penetrates Garrison Access. 03413_ Lgt. Nuclear Core destroyed. 03415_ Slug penetrates Garrison Access. 03426_ G-47 Trooper destroyed. 03430_ K-01 Serf collects debris. 03432_ Slug penetrates Garrison Access. 03438_ K-01 Serf cleans the Garrison Access. 03447_ Slug penetrates Garrison Access. 03451_ K-01 Serf cleans the Garrison Access. 03452_ Slug penetrates Garrison Access. Map ----- +----------------------------------------------------+ | "" # #####*# ##?????????????????????? | | "" # #??##%############?????????????????????? | | # #??##=############?????????????????????? | | # #??##!##???????????????????????????????? | | #### #??## ##???????????????????????????????? | | #### #??##%##???????????????????????????????? | | ##?#+##+###?###%#########????????????????????????? | | ##?# #???###/#########????????????????????????? | | #### ##??##%![ ##????????????????????????? | | #### ######%%"""""" ##????????????????????????? | | ### %"""""" ##????????????????????????? | | ### %"""""" ##????????????????????????? | | ### %"""""" ##????????????????????????? | | # """"""" ##????????????????????????? | | + ##????????????????????????? | | # ! ##########????????????????? | | ########## ######/#############????????????????? | | ### # ??????????????? | | ???????? # + """## | | ???????? + "" # """## """ | | ???????? # "T ##########+#### ## """ | | ???????? # "" ####### ## ## """ | | ???????? # ####??????????# ## """ | | ????????## ## #####??????########### """ | | ????????## """"" ==# #????????????????# | | ???????? # """"" [ #! k@ #????????????????##### | | ???????? + """"" *%!#%" " #????????????????????? | | ???????? # ==*+["G" #????????????????????? | | ???????? # %[#!"""h #??????#####?????????? | | ????????## """"" *#%!* #??????# #?????????? | | ???????? """"" ########??????# #?????????? | | ?????? """" ???????????? #?????????? | | ??????### ????????????? #????????## | | ??????### ??????????? #????????# | | ???????## ###+######???????????# #????????# | | ???????## #### #???????????#####????????# | | ????????# ####?????????????????????????????????# | | ????????#???????????????????????????????????????# | | ????????????????????????????????????????????????# | | ???????????????????????????????????############### | | ??????????????????????????????????? | | ??????????????????????????????????? | | ??????????????????????????????????? | | #+####### ???????????????????????????????????????? | | ##### ???????????????????????????????????????? | | ???????????????????????????????????????? | | T ???????????????????????????????????????? | | ##### ???????????????????????????????????????? | | ########???????????????????????????????????????? | | # ???????????????????????????????????????? | +----------------------------------------------------+ Best States ------------- Heat Dissipation 31 Energy Generation 14 Energy Capacity 265 Matter Stores 300 Matter Capacity 300 Sight Range 16 Terrain Scan Density 10 Armor Coverage 150 Utility Shielding 66 Evasion (%) 58 Salvage Targeting 4 Item Schematics ----------------- None Robot Schematics ------------------ None Fabricated ------------ Nothing Repaired ---------- Nothing Studied --------- None Alien Tech Used ----------------- None Achievements -------------- That Tickles Challenges ------------ None Game ------ Seed ImpactSkeletonMapper Manual? 0 Play Time 00:40:06 Cumulative 78.3 hours Start 2026.02.19 @ 03:31:09 End 2026.02.19 @ 04:09:36 Sessions 1 Manual Loads 0 Difficulty Rogue Special Mode None Game No. 73 Rogue 73 Adventurer 0 Explorer 0 Win Type - Total 0 Types 0/0/0/0/0/0/0/0/0/0 Lore% 34 Gallery% 36 Achievement% 23 Wizard Run 0 Options --------- Layout 1 ASCII 1 Keyboard 1 Movement Numpad Keybinds 0 Fullscreen 1 Font 24/Smallcaps Map View 50x35 Zoom Use 0% Tactical HUD 1 Map Filters NONE Filters NONE Steam 1 RUN: 0c99d049-8cd7-46a1-aa6e-aea6ca29d325